fUST/lending_fUST_20240306
["ID","MTS","AMOUNT","RATE_DAILY","PERIOD"]
[317021161,1709669449683,-500.0,0.00023899,2]
[317021162,1709669449692,-500.0,0.00023899,2]
[317021164,1709669449702,-500.0,0.00023899,2]
[317021167,1709669449712,-500.0,0.00023899,2]
[317021168,1709669449721,-500.0,0.00023899,2]
[317021170,1709669449731,-500.0,0.00023899,2]
[317021172,1709669449740,-500.0,0.00023899,2]
[317021174,1709669449749,-500.0,0.00023899,2]
[317021176,1709669449758,-500.0,0.00023899,2]
[317021178,1709669449768,-500.0,0.00023899,2]
[317021180,1709669449778,-500.0,0.00023899,2]
[317021182,1709669449787,-500.0,0.00023899,2]
[317021184,1709669449796,-500.0,0.00023899,2]
[317021186,1709669449805,-500.0,0.00023899,2]
[317021188,1709669449814,-500.0,0.00023899,2]
[317021190,1709669449823,-500.0,0.00023899,2]
[317021192,1709669449832,-500.0,0.00023899,2]
[317021194,1709669449842,-500.0,0.00023899,2]
[317021196,1709669449851,-500.0,0.00023899,2]
[317021198,1709669449860,-500.0,0.00023899,2]
[317021200,1709669449875,-500.0,0.00023899,2]
[317021202,1709669449884,-500.0,0.00023899,2]
[317021204,1709669449894,-500.0,0.00023899,2]
[317021206,1709669449903,-500.0,0.00023899,2]
[317021208,1709669449913,-3500.55240525,0.000239,2]
[317021210,1709669449922,-3388.94404032,0.000239,2]
[317021212,1709669449932,-2019.08359962,0.000239,2]
[317021214,1709669449940,-302.36214045,0.000239,2]
[317021216,1709669449950,-302.36214045,0.000239,2]
[317021218,1709669449959,-302.36214045,0.000239,2]
[317021220,1709669449968,-302.36214045,0.000239,2]
[317021222,1709669449977,-302.36214045,0.000239,2]
[317021224,1709669449986,-302.36214045,0.000239,2]
[317021226,1709669449995,-302.36214045,0.000239,2]
[317021228,1709669450005,-302.36214045,0.000239,2]
[317021230,1709669450015,-302.36214045,0.000239,2]
[317021232,1709669450024,-302.36214045,0.000239,2]
[317021234,1709669450034,-302.36214045,0.000239,2]
[317021236,1709669450043,-302.36214045,0.000239,2]
[317021238,1709669450053,-302.36214045,0.000239,2]
[317021240,1709669450062,-302.36214045,0.000239,2]
[317021242,1709669450072,-302.36214045,0.000239,2]
[317021244,1709669450086,-302.36214045,0.000239,2]
[317021246,1709669450095,-302.36214045,0.000239,2]
[317021248,1709669450105,-302.36214045,0.000239,2]
[317021250,1709669450115,-302.36214045,0.000239,2]
[317021252,1709669450130,-302.36,0.000239,2]
[317021254,1709669450140,-1209.4485618,0.000239,2]
[317021256,1709669450152,-1209.4485618,0.000239,2]
[317021258,1709669450164,-1209.4485618,0.000239,2]
[317021260,1709669450174,-1209.4485618,0.000239,2]
[317021262,1709669450184,-1209.4485618,0.000239,2]
[317021264,1709669450194,-1209.4485618,0.000239,2]
[317021266,1709669450204,-1209.4485618,0.000239,2]
[317021268,1709669450214,-1209.4485618,0.000239,2]
[317021270,1709669450224,-1209.4485618,0.000239,2]
[317021280,1709669450314,-1209.4485618,0.000239,2]
[317021282,1709669450325,-1209.4485618,0.000239,2]
[317021284,1709669450337,-1209.4485618,0.000239,2]
[317021286,1709669450348,-1209.4485618,0.000239,2]
[317021288,1709669450359,-1209.4485618,0.000239,2]
[317021290,1709669450371,-1209.4485618,0.000239,2]
[317021292,1709669450382,-1209.4485618,0.000239,2]
[317021294,1709669450391,-1209.4485618,0.000239,2]
[317021295,1709669450402,-1209.4485618,0.000239,2]
[317021297,1709669450412,-1209.4485618,0.000239,2]
[317021299,1709669450423,-1209.44,0.000239,2]
[317021301,1709669450434,-150.56701617,0.000239,2]
[317021303,1709669450445,-150.56701617,0.000239,2]
[317021305,1709669450456,-150.56701617,0.000239,2]
[317021308,1709669450467,-150.56701617,0.000239,2]
[317021310,1709669450478,-150.56701617,0.000239,2]
[317021311,1709669450488,-150.56701617,0.000239,2]
[317021313,1709669450498,-150.56701617,0.000239,2]
[317021316,1709669450508,-150.56701617,0.000239,2]
[317021317,1709669450518,-150.56701617,0.000239,2]
[317021319,1709669450530,-150.56701617,0.000239,2]
[317021322,1709669450543,-150.56,0.000239,2]
[317021324,1709669450553,-331.24743556,0.000239,2]
[317021326,1709669450564,-331.24743556,0.000239,2]
[317021328,1709669450574,-331.24743556,0.000239,2]
[317021330,1709669450583,-331.24743556,0.000239,2]
[317021332,1709669450593,-331.24743556,0.000239,2]
[317021333,1709669450603,-331.24743556,0.000239,2]
[317021335,1709669450612,-331.24743556,0.000239,2]
[317021337,1709669450625,-331.24743556,0.000239,2]
[317021339,1709669450634,-331.24743556,0.000239,2]
[317021341,1709669450644,-331.24743556,0.000239,2]
[317021343,1709669450655,-331.24743556,0.000239,2]
[317021345,1709669450665,-331.24743556,0.000239,2]
[317021347,1709669450675,-331.24743556,0.000239,2]
[317021349,1709669450685,-331.24743556,0.000239,2]
[317021351,1709669450695,-331.24743556,0.000239,2]
[317021353,1709669450704,-331.24743556,0.000239,2]
[317021355,1709669450714,-331.24743556,0.000239,2]
[317021357,1709669450724,-331.24743556,0.000239,2]
[317021359,1709669450733,-331.24743556,0.000239,2]
[317021361,1709669450743,-331.24,0.000239,2]
[317021363,1709669450752,-971.64575151,0.00023907,2]
[317021365,1709669450762,-13212.50216709,0.00023911,2]
[317021367,1709669450771,-170.083727,0.00023912,2]
[317021369,1709669450782,-1000.0,0.00023927,2]
[317021371,1709669450792,-1000.0,0.00023932,2]
[317021373,1709669450802,-154.00961775,0.00023936,2]
[317021375,1709669450812,-1028.35424849,0.00023944,2]
[317021377,1709669450823,-1000.0,0.00023964,2]
[317021379,1709669450833,-1000.0,0.00023967,7]
[317021381,1709669450845,-1647.59889284,0.00023968,6]
[317021383,1709669450855,-500.0,0.00023996,2]
[317021385,1709669450865,-500.0,0.00023996,2]
[317021387,1709669450880,-500.0,0.00023996,2]
[317021389,1709669450890,-885.28,0.00023996,2]
[317021391,1709669450900,-328.91904468,0.00023997,2]
[317021393,1709669450910,-500.0,0.00023997,2]
[317021395,1709669450920,-500.0,0.00023997,2]
[317021397,1709669450929,-500.0,0.00023997,2]
[317021399,1709669450939,-500.0,0.00023997,2]
[317021401,1709669450949,-1179.57,0.00023997,2]
[317021403,1709669450959,-1179.57,0.00023997,2]
[317021405,1709669450968,-1179.57,0.00023997,2]
[317021407,1709669450979,-1179.57,0.00023997,2]
[317021409,1709669450988,-1179.59,0.00023997,2]
[317021411,1709669450997,-586.54,0.00023997,2]
[317021413,1709669451007,-586.54,0.00023997,2]
[317021415,1709669451016,-586.54,0.00023997,2]
[317021417,1709669451025,-586.54,0.00023997,2]
[317021419,1709669451035,-586.58,0.00023997,2]
[317021421,1709669451045,-500.0,0.00023997,2]
[317021423,1709669451055,-432.82,0.00023997,2]
[317021425,1709669451064,-500.0,0.00023997,2]
[317021426,1709669451076,-542.6,0.00023997,2]
[317021429,1709669451089,-194.53495869,0.00023998,2]
[317021431,1709669451099,-155.52064643,0.00023998,2]
[317021433,1709669451109,-157.1740432,0.00023998,2]
[317021435,1709669451122,-288.81843757,0.00023998,2]
[317021436,1709669451132,-205.50002279,0.00023998,2]
[317021438,1709669451142,-401.00883587,0.00023998,2]
[317021440,1709669451153,-875.09853826,0.00023998,2]
[317021442,1709669451165,-181.57504384,0.00023998,2]
[317021444,1709669451174,-201.46665983,0.00023998,2]
[317021446,1709669451184,-200.52769962,0.00023998,2]
[317021448,1709669451195,-305.46793683,0.00023998,2]
[317021450,1709669451205,-528.15312328,0.00023998,2]
[317021452,1709669451215,-420.73274042,0.00023998,2]
[317021454,1709669451224,-181.96255062,0.00023998,2]
[317021456,1709669451235,-178.48925224,0.00023998,2]
[317021458,1709669451246,-157.05081619,0.00023998,2]
[317021460,1709669451256,-170.10931262,0.00023998,2]
[317021463,1709669451267,-159.91576652,0.00023998,2]
[317021465,1709669451277,-170.90556267,0.00023998,2]
[317021467,1709669451288,-469.39231236,0.00023998,2]
[317021469,1709669451299,-278.25603449,0.00023998,2]
[317021470,1709669451309,-178.12553811,0.00023998,2]
[317021472,1709669451320,-201.90321527,0.00023998,2]
[317021475,1709669451332,-190.05213998,0.00023998,2]
[317021476,1709669451343,-246.84977647,0.00023998,2]
[317021479,1709669451358,-182.59036802,0.00023998,2]
[317021481,1709669451369,-262.48262514,0.00023998,7]
[317021482,1709669451382,-378.0,0.00023998,2]
[317021484,1709669451392,-426.58,0.00023998,2]
[317021486,1709669451402,-781.37934963,0.00023998,2]
[317021488,1709669451413,-8606.87493274,0.00023998,2]
[317021490,1709669451423,-290.9725207,0.00023998,2]
[317021493,1709669451433,-243.60026048,0.00023998,2]
[317021496,1709669451442,-155.09603893,0.00023998,2]
[317021498,1709669451452,-556.58877649,0.00023998,2]
[317021501,1709669451462,-165.46156469,0.00023998,2]
[317021503,1709669451472,-194.64830155,0.00023998,2]
[317021505,1709669451482,-860.75138859,0.00023998,2]
[317021507,1709669451492,-206.24630372,0.00023998,2]
[317021509,1709669451502,-180.00151161,0.00023998,2]
[317021511,1709669451512,-1796.49003684,0.00023998,2]
[317021513,1709669451522,-341.59969972,0.00023998,2]
[317021515,1709669451532,-155.62456199,0.00023998,2]
[317021517,1709669451543,-1166.97144352,0.00023998,2]
[317021518,1709669451553,-3086.26126009,0.00023998,2]
[317021519,1709669451563,-508.58915843,0.00023998,2]
[317021520,1709669451572,-679.9,0.00023998,2]
[317021521,1709669451582,-185.13888257,0.00023998,2]
[317021522,1709669451592,-882.58981719,0.00023998,2]
[317021523,1709669451601,-155.03875969,0.00023998,2]
[317021524,1709669451611,-181.57,0.00023999,2]
[317021525,1709669451622,-798.55,0.00023999,2]
[317021526,1709669451632,-500.0,0.00023999,2]
[317021527,1709669451643,-500.0,0.00023999,2]
[317021528,1709669451653,-500.0,0.00023999,2]
[317021529,1709669451662,-500.0,0.00023999,2]
[317021530,1709669451672,-500.0,0.00023999,2]
[317021531,1709669451681,-500.0,0.00023999,2]
[317021532,1709669451691,-169.4,0.00023999,2]
[317021533,1709669451700,-885.28,0.00023999,2]
[317021534,1709669451710,-885.28,0.00023999,2]
[317021536,1709669451720,-885.28,0.00023999,2]
[317021538,1709669451730,-885.28,0.00023999,2]
[317021540,1709669451739,-885.28,0.00023999,2]
[317021542,1709669451748,-885.28,0.00023999,2]
[317021544,1709669451758,-885.28,0.00023999,2]
[317021546,1709669451767,-885.28,0.00023999,2]
[317021548,1709669451777,-885.28,0.00023999,2]
[317021550,1709669451787,-1089289.71343485,0.00024,5]
[317021554,1709669451815,-9587.52698271,0.00024,5]
[317021556,1709669451826,-5797.58873412,0.00024,5]
[317021558,1709669451839,-910.0,0.00024,5]
[317021561,1709669451850,-6432.54284244,0.00024,5]
[317021563,1709669451865,-6181.51936374,0.00024,5]
[317021569,1709669451910,-2432.45,0.00023287,2]
[317021570,1709669451919,-16857.64166773,0.00024,5]
[317021577,1709669451974,-2499.94502378,0.00024,5]
[317021579,1709669451986,-40417.90000002,0.00024,5]
[317021582,1709669451998,-416.49999965,0.00024,5]
[317021584,1709669452010,-454.89974352,0.00024,5]
[317021586,1709669452021,-992.9874458,0.00024,5]
[317021588,1709669452033,-18277.19999994,0.00024,5]
[317021590,1709669452044,-4641.06360475,0.00024,5]
[317021610,1709669452237,-9094.80004,0.00024,5]
[317021612,1709669452251,-607713.59597315,0.00024,5]
[317021615,1709669452265,-7298.74590723,0.00024,5]
[317021617,1709669452278,-37153.39999134,0.00024,5]
[317021619,1709669452290,-3429.57250737,0.00024,5]
[317021621,1709669452301,-8836.0,0.00024,5]
[317021624,1709669452313,-5400.0,0.00024,5]
[317021626,1709669452324,-5338.39695258,0.00024,5]
[317021628,1709669452335,-2091.45460191,0.00024,5]
[317021630,1709669452346,-4199.75,0.00024,5]
[317021640,1709669452434,-312.3409,0.00024,5]
[317021696,1709669452979,-413.256114,0.00020347,2]
[317021698,1709669452990,-166.6666689,0.00022096,2]
[317021700,1709669452999,-500.0,0.0002307,2]
[317021702,1709669453008,-500.0,0.0002307,2]
[317021704,1709669453017,-500.0,0.0002307,2]
[317021706,1709669453027,-275.41316082,0.0002307,2]
[317021707,1709669453038,-1071.86404979,0.00023287,2]
[317021708,1709669453053,-1360.58595021,0.00023287,2]
[317021709,1709669453063,-2432.45,0.00023287,2]
[317021710,1709669453073,-2432.45,0.00023287,2]
[317021711,1709669453088,-2417.75492225,0.00023287,2]
[317021712,1709669453129,-14.69507775,0.00023287,2]
[317021713,1709669453139,-2432.45,0.00023287,2]
[317021714,1709669453148,-2432.45,0.00023287,2]
[317021715,1709669453158,-170.37369886,0.00023287,2]
[317021716,1709669453168,-2432.45,0.00023287,2]
[317021717,1709669453177,-2432.45,0.00023287,2]
[317021718,1709669453186,-2432.45,0.00023287,2]
[317021719,1709669453196,-2908.4,0.00023287,2]
[317021720,1709669453207,-2432.45,0.00023287,2]
[317021721,1709669453219,-2908.4,0.00023287,2]
[317021722,1709669453230,-2432.45,0.00023287,2]
[317021723,1709669453241,-2908.4,0.00023287,2]
[317021724,1709669453251,-2432.45,0.00023287,2]
[317021725,1709669453261,-2908.4,0.00023287,2]
[317021726,1709669453272,-2908.4,0.00023287,2]
[317021727,1709669453281,-2908.4,0.00023287,2]
[317021728,1709669453291,-2908.4,0.00023287,2]
[317021729,1709669453301,-2908.4,0.00023287,2]
[317021730,1709669453311,-2908.4,0.00023287,2]
[317021731,1709669453321,-2908.4,0.00023287,2]
[317021732,1709669453331,-2908.4,0.00023287,2]
[317021733,1709669453340,-2908.4,0.00023287,2]
[317021734,1709669453351,-2908.4,0.00023287,2]
[317021735,1709669453361,-2432.45,0.00023889,2]
[317021736,1709669453374,-2908.4,0.00023889,2]
[317021737,1709669453385,-2432.45,0.00023996,2]
[317021738,1709669453396,-2908.4,0.00023996,2]
[317021739,1709669453407,-2432.45,0.00023999,2]
[317021740,1709669453418,-2432.45,0.00023999,2]
[317021741,1709669453429,-2432.45,0.00023999,2]
[317021742,1709669453439,-2432.45,0.00023999,2]
[317021743,1709669453450,-2432.45,0.00023999,2]
[317021744,1709669453461,-2432.45,0.00023999,2]
[317021745,1709669453471,-2432.45,0.00023999,2]
[317021746,1709669453483,-2432.45,0.00023999,2]
[317021747,1709669453493,-2432.53,0.00023999,2]
[317021748,1709669453503,-205929.52960313,0.00024,5]
[317021749,1709669453515,-415.11121662,0.00024,5]
[317021750,1709669453598,-1996.38548334,0.00024,5]
[317021944,1709669459989,-736.14598266,0.00021681,2]
[317021946,1709669460000,-736.14598266,0.000219,2]
[317021948,1709669460012,-504.23,0.00023287,2]
[317021950,1709669460022,-155.20880536,0.00023998,2]
[317021951,1709669460033,-1635.78029604,0.00023998,2]
[317021952,1709669460043,-155.0480649,0.00023998,2]
[317021953,1709669460053,-266.58565563,0.00023998,2]
[317021954,1709669460064,-247.6087915,0.00023998,2]
[317021955,1709669460091,-155.0480649,0.00023998,2]
[317021956,1709669460108,-155.0480649,0.00023998,2]
[317021957,1709669460120,-176.78867856,0.00023998,2]
[317021958,1709669460134,-155.0480649,0.00023998,2]
[317021959,1709669460146,-155.0480649,0.00023998,2]
[317021960,1709669460157,-254.37764725,0.00023998,2]
[317021961,1709669460169,-2908.4,0.00023999,2]
[317021962,1709669460180,-2908.4,0.00023999,2]
[317021963,1709669460192,-2908.4,0.00023999,2]
[317021964,1709669460203,-2908.4,0.00023999,2]
[317021965,1709669460213,-2908.4,0.00023999,2]
[317021966,1709669460225,-2908.4,0.00023999,2]
[317021967,1709669460235,-2908.4,0.00023999,2]
[317021969,1709669460246,-2908.4,0.00023999,2]
[317021970,1709669460256,-2908.43873791,0.00023999,2]
[317021971,1709669460266,-3926.64680726,0.00023999,3]
[317021973,1709669460277,-681040.86650663,0.00024,5]
[317021976,1709669460291,-1329.9,0.00024,5]
[317021978,1709669460304,-298750.0,0.00024,5]
[317021981,1709669460318,-2940.0,0.00024,5]
[317021983,1709669460331,-605.01801761,0.00024,5]
[317021985,1709669460344,-2279.65393734,0.00024,5]
[317021987,1709669460356,-338.73481871,0.00024,5]
[317021990,1709669460370,-843.28472309,0.00024,5]
[317033336,1709670208340,465.29779059,0.00019267,2]
[317033337,1709670216687,465.29779059,0.00019267,2]
[317033338,1709670225853,3961.85141409,0.00019266,2]
[317033341,1709670234969,3961.85141409,0.00019266,2]
[317033343,1709670242878,145.70159064,0.00019265,2]
[317033344,1709670242914,9.37905129,0.00019265,2]
[317033347,1709670250915,465.23727102,0.00019264,2]
[317033348,1709670258655,155.07909034,0.00019263,2]
[317033349,1709670267202,155.07909034,0.00019263,2]
[317033350,1709670275741,2035.7901374,0.00019263,2]
[317033351,1709670276806,245.85336353,0.00019167,2]
[317033352,1709670283779,155.10236756,0.00019262,2]
[317033353,1709670291608,290.27942906,0.00019261,2]
[317033356,1709670305162,290.27942906,0.00019261,2]
[317033358,1709670313464,155.08995217,0.00019259,2]
[317033359,1709670321989,155.07909034,0.00019258,2]
[317033361,1709670330564,155.07909034,0.00019258,2]
[317033362,1709670338769,155.07909034,0.00019258,2]
[317033364,1709670346775,445.36007099,0.00019257,2]
[317033366,1709670354512,1635.78029604,0.00019256,2]
[317033367,1709670361134,490.76398844,0.000189,2]
[317033368,1709670363888,310.15818068,0.00019255,2]
[317033370,1709670371920,155.07753877,0.00019254,2]
[317033371,1709670379734,310.15507754,0.00019254,2]
[317033372,1709670387776,1230.29839475,0.00019253,2]
[317033373,1709670394917,9000.0,0.00019031,2]
[317033374,1709670394952,15900.0,0.00019031,2]
[317033385,1709670572141,310.14887146,0.0001898,2]
[317033386,1709670580198,290.27942906,0.00018979,2]
[317033387,1709670589141,290.27942906,0.00018979,2]
[317033388,1709670597140,1790.85473177,0.00018978,2]
[317033394,1709670605728,310.15042296,0.00018977,2]
[317033397,1709670613782,155.07598723,0.00018976,2]
[317033401,1709670622320,155.07598723,0.00018976,2]
[317033404,1709670630661,155.07598723,0.00018975,2]
[317033673,1709670638769,445.35541629,0.00018974,2]
[317033682,1709670639211,-290.27942906,0.00019166,2]
[317033683,1709670639221,-155.07598723,0.00019166,2]
[317033684,1709670639231,-155.07598723,0.00019167,2]
[317033685,1709670639240,-155.07598723,0.00019168,2]
[317033686,1709670639251,-1880.71104706,0.00019168,2]
[317033687,1709670639261,-155.07443573,0.00019169,2]
[317033688,1709670639271,-155.07598723,0.00019169,2]
[317033689,1709670639281,-155.07443573,0.0001917,2]
[317033690,1709670639290,-1635.78029604,0.0001917,2]
[317033691,1709670639299,-172.126998,0.00019178,2]
[317033692,1709670639308,-197.0,0.00019472,2]
[317033693,1709670639319,-1198.6679833,0.00019473,2]
[317033694,1709670639350,-1030.58931773,0.00019473,2]
[317033695,1709670639363,-265.64143509,0.00019473,2]
[317033696,1709670639372,-991.4880745,0.0001997,2]
[317033697,1709670639382,-3000.0,0.00020129,2]
[317033698,1709670639391,-206.628057,0.00020431,2]
[317033699,1709670639400,-638.57440372,0.00020969,2]
[317033700,1709670639412,-175.1382618,0.00021328,2]
[317033701,1709670639423,-172.126998,0.00021422,2]
[317033702,1709670639432,-162.0,0.00022,2]
[317033703,1709670639442,-155.0,0.00022,2]
[317033704,1709670639456,-620.92872019,0.00022017,2]
[317033705,1709670639475,-162.0,0.00022192,2]
[317033706,1709670639485,-2827.34274134,0.00022955,2]
[317033707,1709670639495,-151.85841499,0.00022961,2]
[317033708,1709670639506,-2366.95669113,0.00022961,3]
[317033709,1709670639515,-151.20630773,0.00022966,2]
[317033710,1709670639526,-155.0,0.00022999,2]
[317033711,1709670639536,-500.0,0.00023,7]
[317033712,1709670639546,-500.0,0.00023,7]
[317033713,1709670639556,-315.32,0.00023,7]
[317033714,1709670639566,-200.0,0.00023,2]
[317033715,1709670639576,-162.0,0.00023014,2]
[317033716,1709670639586,-155.0,0.00023014,2]
[317033717,1709670639595,-18882.8380513,0.00023168,3]
[317033718,1709670639605,-6472.88189382,0.00023169,5]
[317033719,1709670639614,-3409.00300171,0.00023169,3]
[317033720,1709670639623,-23719.84911506,0.0002317,5]
[317033721,1709670639633,-153.0,0.00023178,2]
[317033722,1709670639642,-153.0,0.00023178,2]
[317033723,1709670639652,-153.0,0.00023178,2]
[317033724,1709670639661,-153.0,0.00023178,2]
[317033725,1709670639671,-963.20623179,0.00023187,2]
[317033726,1709670639680,-281.09,0.00023258,3]
[317033727,1709670639689,-234.24,0.00023258,3]
[317033728,1709670639702,-702.77,0.00023258,3]
[317033729,1709670639716,-153.0,0.0002326,2]
[317033730,1709670639726,-500.0,0.00023266,2]
[317033731,1709670639736,-500.0,0.00023266,2]
[317033733,1709670639746,-500.0,0.00023266,2]
[317033734,1709670639756,-500.0,0.00023266,2]
[317033735,1709670639768,-500.0,0.00023266,2]
[317033736,1709670639779,-500.0,0.00023266,2]
[317033737,1709670639790,-500.0,0.00023266,2]
[317033738,1709670639802,-500.0,0.00023266,2]
[317033739,1709670639815,-500.0,0.00023266,2]
[317033740,1709670639826,-500.0,0.00023266,2]
[317033741,1709670639837,-582.33254553,0.00023266,2]
[317033742,1709670639848,-190.17780385,0.00023266,2]
[317033744,1709670639858,-443.2516657,0.00023266,2]
[317033746,1709670639868,-500.0,0.00023266,2]
[317033748,1709670639880,-162.72642051,0.00023266,2]
[317033751,1709670639891,-386.18147125,0.00023266,2]
[317033754,1709670639904,-500.0,0.00023266,2]
[317033757,1709670639915,-500.0,0.00023266,2]
[317033761,1709670639926,-500.0,0.00023266,2]
[317033764,1709670639937,-242.93739703,0.00023266,2]
[317033766,1709670639947,-500.0,0.00023266,2]
[317033769,1709670639966,-500.0,0.00023266,2]
[317033773,1709670639982,-500.0,0.00023266,2]
[317033775,1709670639993,-500.0,0.00023266,2]
[317033777,1709670640004,-500.0,0.00023266,2]
[317033778,1709670640015,-500.0,0.00023266,2]
[317033780,1709670640027,-500.0,0.00023266,2]
[317033781,1709670640038,-500.0,0.00023266,2]
[317033782,1709670640049,-500.0,0.00023266,2]
[317033783,1709670640061,-500.0,0.00023266,2]
[317033784,1709670640072,-500.0,0.00023266,2]
[317033785,1709670640086,-500.0,0.00023266,2]
[317033786,1709670640096,-500.0,0.00023266,2]
[317033787,1709670640106,-500.0,0.00023266,2]
[317033788,1709670640116,-500.0,0.00023266,2]
[317033789,1709670640126,-500.0,0.00023266,2]
[317033790,1709670640136,-500.0,0.00023266,2]
[317033791,1709670640146,-500.0,0.00023266,2]
[317033792,1709670640156,-182.40088662,0.00023266,2]
[317033793,1709670640166,-500.0,0.00023266,2]
[317033794,1709670640176,-500.0,0.00023266,2]
[317033795,1709670640186,-500.0,0.00023266,2]
[317033796,1709670640196,-500.0,0.00023266,2]
[317033797,1709670640213,-500.0,0.00023266,2]
[317033799,1709670640223,-500.0,0.00023266,2]
[317033801,1709670640232,-500.0,0.00023266,2]
[317033804,1709670640242,-500.0,0.00023266,2]
[317033806,1709670640252,-500.0,0.00023266,2]
[317033807,1709670640262,-500.0,0.00023266,2]
[317033809,1709670640272,-500.0,0.00023266,2]
[317033811,1709670640282,-465.09570605,0.00023266,2]
[317033812,1709670640293,-500.0,0.00023266,2]
[317033814,1709670640303,-500.0,0.00023266,2]
[317033816,1709670640314,-500.0,0.00023266,2]
[317033818,1709670640324,-500.0,0.00023266,2]
[317033820,1709670640334,-500.0,0.00023266,2]
[317033821,1709670640355,-500.0,0.00023266,2]
[317033822,1709670640376,-500.0,0.00023266,2]
[317033824,1709670640394,-500.0,0.00023266,2]
[317033826,1709670640410,-500.0,0.00023266,2]
[317033828,1709670640424,-500.0,0.00023266,2]
[317033830,1709670640434,-500.0,0.00023266,2]
[317033832,1709670640444,-500.0,0.00023266,2]
[317033833,1709670640460,-500.0,0.00023266,2]
[317033835,1709670640470,-500.0,0.00023266,2]
[317033837,1709670640480,-500.0,0.00023266,2]
[317033839,1709670640490,-500.0,0.00023266,2]
[317033841,1709670640499,-500.0,0.00023266,2]
[317033842,1709670640510,-500.0,0.00023266,2]
[317033844,1709670640520,-500.0,0.00023266,2]
[317033845,1709670640531,-500.0,0.00023266,2]
[317033846,1709670640541,-500.0,0.00023266,2]
[317033848,1709670640551,-500.0,0.00023266,2]
[317033850,1709670640562,-500.0,0.00023266,2]
[317033852,1709670640572,-500.0,0.00023266,2]
[317033854,1709670640582,-500.0,0.00023266,2]
[317033855,1709670640592,-500.0,0.00023266,2]
[317033857,1709670640602,-500.0,0.00023266,2]
[317033859,1709670640611,-500.0,0.00023266,2]
[317033862,1709670640621,-500.0,0.00023266,2]
[317033864,1709670640631,-500.0,0.00023266,2]
[317033866,1709670640641,-500.0,0.00023266,2]
[317033868,1709670640650,-500.0,0.00023266,2]
[317033870,1709670640659,-151.38001891,0.00023286,2]
[317033872,1709670640668,-151.0,0.00023286,2]
[317033873,1709670640678,-151.0,0.00023286,2]
[317033875,1709670640689,-151.0,0.00023286,2]
[317033877,1709670640697,-151.0,0.00023286,2]
[317033879,1709670640711,-151.0,0.00023286,2]
[317033882,1709670640721,-151.0,0.00023286,2]
[317033883,1709670640730,-151.0,0.00023286,2]
[317033885,1709670640739,-151.0,0.00023286,2]
[317033887,1709670640749,-151.0,0.00023286,2]
[317033889,1709670640759,-500.0,0.00023286,2]
[317033891,1709670640768,-500.0,0.00023286,2]
[317033894,1709670640778,-191.2744717,0.00023286,2]
[317033895,1709670640788,-500.0,0.00023286,2]
[317033898,1709670640798,-500.0,0.00023287,2]
[317033900,1709670640808,-500.0,0.00023287,2]
[317033901,1709670640817,-503.16388942,0.00023287,2]
[317033903,1709670640827,-506.73462757,0.00023287,2]
[317033905,1709670640836,-500.48761592,0.00023287,2]
[317033907,1709670640845,-500.0,0.00023287,2]
[317033909,1709670640855,-500.0,0.00023287,2]
[317033911,1709670640864,-500.0,0.00023287,2]
[317033913,1709670640873,-500.0,0.00023287,2]
[317033915,1709670640883,-500.0,0.00023287,2]
[317033917,1709670640893,-500.0,0.00023287,2]
[317033920,1709670640902,-500.0,0.00023287,2]